bitfinex-derivatives/quotes_SOLF0:USTF0_20250105
["timestamp","ask_amount","ask_price","bid_price","bid_amount"]
[1736100585269,7.4865913,212.32,212.29,2.3557]
[1736100594286,7.4865913,212.32,212.25,8.9051913]
[1736100594488,7.4865913,212.32,212.3,2.3557]
[1736100594686,2.7,212.34,212.3,2.3557]
[1736100594885,7.4865913,212.33,212.3,2.3557]
[1736100600292,7.4865913,212.31,212.29,2.3558]
[1736100600694,7.4865913,212.31,212.25,1.4186]
[1736100600898,7.4865913,212.27,212.24,82.69400697]
[1736100601097,7.4865913,212.27,212.24,80.33770697]
[1736100602189,2.7,212.29,212.24,80.33770697]
[1736100602190,5.0558,212.29,212.24,82.69410697]
[1736100602490,7.4865913,212.28,212.24,82.69410697]
[1736100603397,7.4865913,212.28,212.24,2.3564]
[1736100606099,9.8424913,212.28,212.24,2.3564]
[1736100607901,9.8424913,212.28,212.25,2.3562]
[1736100610703,9.8424913,212.28,212.24,2.3563]
[1736100612006,7.4865913,212.26,212.2,33.70047892]
[1736100612301,7.4865913,212.24,212.2,32.21417892]
[1736100612502,10.1465913,212.24,212.2,32.21417892]
[1736100612803,10.1465913,212.24,212.2,6.02028427]
[1736100613303,12.5029913,212.24,212.2,8.37708427]
[1736100615502,2.3565,212.23,212.2,8.37708427]
[1736100616905,7.4865913,212.22,212.17,6.54619725]
[1736100617102,7.4865913,212.18,212.17,6.54619725]
[1736100617298,10.1465913,212.18,212.17,6.54619725]
[1736100617809,10.1465913,212.18,212.13,26.19389465]
[1736100618306,10.1465913,212.18,212.11,1.4713]
[1736100619410,2.3572,212.17,212.12,2.3577]
[1736100620405,7.4865913,212.16,212.12,2.3577]
[1736100620706,9.8438913,212.16,212.11,1.4713]
[1736100621710,9.8438913,212.16,212.11,3.829]
[1736100623209,7.4865913,212.14,212.08,7.4865913]
[1736100623409,7.4865913,212.14,212.1,2.3579]
[1736100626110,2.3572,212.17,212.1,7.4865913]
[1736100626415,9.8437913,212.17,212.1,7.4865913]
[1736100627411,9.8437913,212.17,212.12,2.3577]
[1736100628515,7.4865913,212.15,212.12,2.3577]
[1736100631714,7.4865913,212.15,212.08,7.4865913]
[1736100631916,7.4865913,212.15,212.11,2.3578]
[1736100634016,7.4865913,212.15,212.1,7.4865913]
[1736100634217,2.66,212.18,212.1,7.4865913]
[1736100634523,2.66,212.17,212.12,7.4865913]
[1736100635919,2.66,212.17,212.14,2.3574]
[1736100639520,9.8438913,212.16,212.12,2.3577]
[1736100640020,7.4865913,212.14,212.12,2.3577]
[1736100640826,7.4865913,212.14,212.09,2.3579]
[1736100641128,7.4865913,212.14,212.08,7.4865913]
[1736100642424,7.4865913,212.14,212.11,2.3578]
[1736100642922,9.8438913,212.16,212.08,7.4865913]
[1736100643923,9.8438913,212.16,212.11,2.3577]
[1736100645223,2.3575,212.14,212.11,2.3577]
[1736100645821,7.4865913,212.14,212.11,2.3577]
[1736100646721,2.3576,212.13,212.09,2.358]
[1736100647124,2.66,212.12,212.09,2.358]
[1736100648021,10.1465913,212.12,212.06,1.4397]
[1736100649426,2.3579,212.1,212.06,3.7981]
[1736100649626,10.1465913,212.12,212.06,1.4397]
[1736100650027,12.5043913,212.12,212.07,2.3582]
[1736100653231,7.4865913,212.14,212.08,7.4865913]
[1736100653429,12.5040913,212.14,212.1,2.3579]
[1736100653627,10.1465913,212.14,212.08,7.4865913]
[1736100654433,12.5040913,212.14,212.09,2.3579]
[1736100655233,12.5040913,212.14,212.08,7.4865913]
[1736100655533,12.5040913,212.14,212.1,2.3579]
[1736100655929,2.3576,212.13,212.08,9.8445913]
[1736100656134,2.3576,212.13,212.08,7.4865913]
[1736100656433,2.66,212.14,212.08,7.4865913]
[1736100656630,10.1465913,212.14,212.1,2.3579]
[1736100657231,12.5040913,212.14,212.1,2.3579]
[1736100658535,9.8440913,212.14,212.1,2.3579]
[1736100658735,12.5040913,212.14,212.1,2.3579]
[1736100659236,2.3573,212.16,212.1,7.4865913]
[1736100659435,2.66,212.15,212.1,7.4865913]
[1736100660233,5.0174,212.15,212.12,2.3577]
[1736100660739,5.0174,212.15,212.09,7.4865913]
[1736100660938,2.3575,212.14,212.1,2.3578]
[1736100661637,2.3575,212.14,212.08,1.4084]
[1736100661638,7.4865913,212.14,212.08,1.4084]
[1736100662638,2.3578,212.12,212.08,3.7665]
[1736100662832,7.4865913,212.12,212.07,1.4624]
[1736100663334,2.3579,212.11,212.07,3.8206]
[1736100666041,7.4865913,212.12,212.06,1.4397]
[1736100667240,2.3579,212.1,212.07,2.3582]
[1736100668237,2.3579,212.1,212.06,3.798]
[1736100671138,2.358,212.09,212.06,3.798]
[1736100672842,2.64,212.1,212.07,2.3582]
[1736100673039,2.64,212.1,212.06,1.4397]
[1736100673842,2.64,212.1,212.07,2.3582]
[1736100677857,2.64,212.1,212.06,1.4397]
[1736100678157,88.01329919,212.18,212.09,7.4865913]
[1736100678344,88.01329919,212.18,212.06,1.4397]
[1736100678345,2.64,212.17,212.12,7.4865913]
[1736100678551,2.64,212.17,212.13,2.3575]
[1736100678959,10.1265913,212.17,212.13,2.3575]
[1736100679259,2.3573,212.16,212.12,2.3577]
[1736100681458,90.65329919,212.18,212.16,2.3572]
[1736100681753,2.64,212.21,212.16,2.3572]
[1736100682054,4.9968,212.21,212.16,2.3572]
[1736100683449,2.3568,212.2,212.16,2.3572]
[1736100683652,7.4865913,212.2,212.11,8.01029725]
[1736100683853,7.4865913,212.2,212.14,2.3574]
[1736100685555,2.357,212.18,212.14,2.3574]
[1736100685756,7.4865913,212.2,212.15,2.3573]
[1736100686458,2.3569,212.19,212.15,2.3573]
[1736100687962,10.1265913,212.2,212.15,2.3573]
[1736100688162,12.4833913,212.2,212.15,2.3573]
[1736100688763,2.64,212.2,212.17,2.3571]
[1736100689065,10.1265913,212.22,212.17,2.3571]
[1736100689868,12.4832913,212.22,212.17,2.3571]
[1736100690365,7.4865913,212.2,212.11,1.4641]
[1736100690563,7.4865913,212.2,212.16,2.3572]
[1736100690962,2.64,212.22,212.16,2.3572]
[1736100691161,7.4865913,212.21,212.17,2.3571]
[1736100691368,2.64,212.22,212.16,7.4865913]
[1736100691757,7.4865913,212.19,212.13,1.489]
[1736100693560,7.4865913,212.19,212.15,2.3573]
[1736100694569,7.4865913,212.17,212.13,3.8465]
[1736100694965,10.1265913,212.17,212.13,3.8465]
[1736100695967,2.64,212.17,212.13,1.489]
[1736100696172,10.1265913,212.21,212.13,1.489]
[1736100696366,12.4832913,212.21,212.16,2.3571]
[1736100701477,4.9967,212.21,212.16,2.3571]
[1736100701669,12.4832913,212.21,212.16,2.3571]
[1736100701870,12.4832913,212.21,212.14,7.4865913]
[1736100702375,2.64,212.21,212.14,7.4865913]
[1736100703378,2.64,212.21,212.16,7.4865913]
[1736100703574,2.64,212.24,212.18,7.4865913]
[1736100704578,2.64,212.24,212.16,7.4865913]
[1736100704779,7.4865913,212.23,212.16,7.4865913]
[1736100705681,10.1265913,212.23,212.16,7.4865913]
[1736100706481,2.3566,212.22,212.18,2.357]
[1736100716083,2.64,212.23,212.21,2.3567]
[1736100716291,84.7288303,212.25,212.2,7.4865913]
[1736100716988,84.7288303,212.25,212.23,2.3565]
[1736100717191,2.64,212.26,212.23,2.3565]
[1736100717586,9.8425913,212.27,212.23,2.3565]
[1736100719894,7.4865913,212.25,212.23,2.3565]
[1736100720586,7.4865913,212.25,212.18,9.0092913]
[1736100720783,7.4865913,212.25,212.21,2.3566]
[1736100720984,7.4865913,212.23,212.21,2.3566]
[1736100721391,7.4865913,212.23,212.2,2.3568]
[1736100721898,7.4865913,212.21,212.15,26.19389465]
[1736100722194,7.4865913,212.17,212.14,26.19389465]
[1736100722393,7.4865913,212.15,212.14,26.19389465]
[1736100723098,9.8439913,212.15,212.1,28.55169465]
[1736100723994,9.8439913,212.15,212.1,2.3578]
[1736100724189,9.8439913,212.15,212.11,2.3578]
[1736100724588,7.4865913,212.15,212.11,2.3578]
[1736100725789,9.8440913,212.15,212.09,2.358]
[1736100725990,7.4865913,212.13,212.09,2.358]
[1736100726186,10.1265913,212.13,212.09,2.358]
[1736100727193,7.4865913,212.11,212.07,2.3581]
[1736100727389,2.64,212.13,212.07,2.3581]
[1736100727593,7.4865913,212.12,212.07,2.3581]
[1736100728286,7.4865913,212.12,212.06,83.9769576]
[1736100728487,7.4865913,212.12,212.06,6.54619725]
[1736100728692,7.4865913,212.12,212.05,9.8449913]
[1736100729495,2.3579,212.1,212.05,9.8449913]
[1736100729698,7.4865913,212.12,212.06,2.3583]
[1736100731500,2.3578,212.11,212.06,2.3583]
[1736100735700,2.3578,212.11,212.07,2.3582]
[1736100741114,9.8444913,212.1,212.05,2.3584]
[1736100744417,9.8447913,212.08,212.04,2.3586]
[1736100744722,12.4847913,212.08,212.04,2.3586]
[1736100752417,2.64,212.08,212.05,7.4865913]
[1736100753524,2.64,212.08,212.07,2.3583]
[1736100754324,2.64,212.1,212.07,2.3583]
[1736100755927,2.3577,212.12,212.05,7.4865913]
[1736100756128,2.64,212.1,212.07,7.4865913]
[1736100756328,2.64,212.11,212.07,7.4865913]
[1736100756528,2.64,212.11,212.08,2.358]
[1736100758727,12.4844913,212.11,212.06,2.3583]
[1736100760021,2.3579,212.1,212.06,2.3583]
[1736100765931,2.64,212.11,212.06,7.4865913]
[1736100766433,2.64,212.12,212.09,2.3579]
[1736100767532,2.64,212.13,212.08,7.4865913]
[1736100767926,2.357,212.18,212.14,2.3574]
[1736100768124,2.64,212.17,212.14,2.3574]
[1736100768931,4.9972,212.17,212.13,2.3576]
[1736100770633,2.64,212.17,212.1,7.4865913]
[1736100771333,2.64,212.17,212.14,2.3574]
[1736100772532,2.357,212.18,212.14,2.3574]
[1736100772740,4.997,212.18,212.14,2.3574]
[1736100773636,7.4865913,212.17,212.14,2.3574]
[1736100774027,7.4865913,212.15,212.07,6.57133597]
[1736100774234,7.4865913,212.08,212.07,6.57133597]
[1736100774539,12.4846913,212.08,212.07,6.57133597]
[1736100774935,10.1265913,212.08,212.06,19.71400792]
[1736100775138,2.3583,212.07,212.06,19.71400792]
[1736100775437,10.1265913,212.08,211.97,2.3594]
[1736100775640,7.4865913,212.03,211.97,2.3594]
[1736100775939,2.64,212.02,211.97,2.3594]
[1736100776636,2.64,212.01,211.99,2.3591]
[1736100778843,2.64,212.02,211.97,7.4865913]
[1736100779042,2.64,212.02,212.01,2.3589]
[1736100780142,2.64,212.03,212.01,2.3589]
[1736100785148,12.4852913,212.03,211.98,2.3592]
[1736100785345,7.4865913,212.01,211.98,2.3592]
[1736100785545,7.4865913,212.01,211.94,10.4573913]
[1736100785747,7.4865913,212.01,211.99,2.3591]
[1736100787753,12.4852913,212.03,211.99,2.3591]
[1736100788154,10.1265913,212.03,212.0,2.3589]
[1736100795356,10.1265913,212.03,211.97,7.4865913]
[1736100796160,10.1265913,212.03,212.0,2.3589]
[1736100797159,7.4865913,212.01,211.98,2.3592]
[1736100797362,7.4865913,212.01,211.95,7.4865913]
[1736100797558,10.1465913,212.01,211.95,7.4865913]
[1736100798161,10.1465913,212.01,211.96,2.3594]
[1736100798361,10.1465913,212.01,211.95,7.4865913]
[1736100799164,10.1465913,212.01,211.98,2.3592]
[1736100801265,7.4865913,211.99,211.96,2.3595]
[1736100802362,7.4865913,211.99,211.97,2.3594]
[1736100802669,7.4865913,211.99,211.94,2.9708]
[1736100802866,7.4865913,211.97,211.95,2.3596]
[1736100803066,2.66,211.96,211.95,2.3596]
[1736100803965,2.66,211.96,211.86,19.71400792]
[1736100804265,7.4865913,211.95,211.87,7.4865913]
[1736100805568,2.66,211.94,211.89,7.4865913]
[1736100805866,2.66,211.94,211.86,1.5054]
[1736100806066,2.66,211.94,211.91,2.3599]
[1736100807172,2.66,211.94,211.92,2.3599]
[1736100807766,7.4865913,211.95,211.92,2.3599]
[1736100807964,2.66,211.93,211.92,2.3599]
[1736100809768,7.4865913,211.95,211.93,2.3597]
[1736100809965,2.66,211.94,211.93,2.3597]
[1736100818370,7.4865913,211.95,211.93,2.3597]
[1736100818572,2.66,211.94,211.93,2.3597]
[1736100821379,2.66,211.94,211.91,2.3599]
[1736100821579,7.4865913,211.92,211.86,1.5054]
[1736100821971,7.4865913,211.92,211.89,2.3602]
[1736100822567,7.4865913,211.92,211.9,2.3601]
[1736100822871,2.66,211.94,211.9,2.3601]
[1736100823176,10.1465913,211.94,211.9,2.3601]
[1736100823371,10.1465913,211.94,211.87,7.4865913]
[1736100823672,10.1465913,211.94,211.91,2.36]
[1736100823871,2.66,211.94,211.87,7.4865913]
[1736100824276,2.66,211.94,211.92,2.3598]
[1736100825475,2.66,211.94,211.87,7.4865913]
[1736100826175,2.66,211.94,211.92,2.3598]
[1736100827479,7.4865913,211.95,211.87,7.4865913]
[1736100827676,2.64,211.94,211.89,7.4865913]
[1736100828479,2.64,211.94,211.9,2.3601]
[1736100828677,2.64,211.94,211.89,7.4865913]
[1736100829478,2.64,211.94,211.92,2.3599]
[1736100829780,2.64,211.93,211.92,2.3599]
[1736100835383,163.5075801,212.16,211.89,7.4865913]
[1736100835589,7.4865913,211.97,211.89,7.4865913]
[1736100835891,2.64,211.96,211.95,2.3596]
[1736100840994,2.64,211.96,211.91,2.3599]
[1736100841195,7.4865913,211.93,211.91,2.3599]
[1736100848395,7.4865913,211.93,211.87,6.57325759]
[1736100848700,7.4865913,211.91,211.9,2.3601]
[1736100848901,10.1265913,211.91,211.9,2.3601]
[1736100849399,10.1265913,211.91,211.87,6.57325759]
[1736100849599,10.1265913,211.91,211.88,2.3603]
[1736100849801,10.1265913,211.91,211.87,6.57325759]
[1736100850700,10.1265913,211.91,211.87,2.3604]
[1736100850891,10.1265913,211.91,211.86,27.79266551]
[1736100851294,10.1265913,211.91,211.86,1.5054]
[1736100853399,10.1265913,211.91,211.89,2.3602]
[1736100855400,10.1265913,211.91,211.88,2.3603]
[1736100858307,10.1265913,211.91,211.86,1.5054]
[1736100858605,10.1265913,211.91,211.87,2.3605]
[1736100859899,7.4865913,211.89,211.87,2.3605]
[1736100863607,7.4865913,211.89,211.86,1.5054]
[1736100863807,7.4865913,211.89,211.88,2.3604]
[1736100873309,7.4865913,211.89,211.77,167.14640755]
[1736100873608,7.4865913,211.85,211.78,86.01822352]
[1736100873912,10.1265913,211.85,211.78,86.01822352]
[1736100874112,10.1265913,211.85,211.84,2.3608]
[1736100874113,2.64,211.85,211.84,2.3608]
[1736100874315,2.64,211.87,211.82,7.4865913]
[1736100874510,2.64,211.87,211.84,7.4865913]
[1736100874710,0.7204,212.01,211.84,7.4865913]
[1736100874907,7.4865913,211.92,211.84,7.4865913]
[1736100875108,2.64,211.91,211.9,2.3601]
[1736100875609,2.3595,211.96,211.9,2.3601]
[1736100875812,7.4865913,211.93,211.86,7.4865913]
[1736100876008,7.4865913,211.93,211.91,2.36]
[1736100876211,0.7204,212.01,211.86,7.4865913]
[1736100876516,7.4865913,211.97,211.95,2.3596]
[1736100876815,2.64,211.96,211.95,2.3596]
[1736100880317,79.07245602,212.02,211.97,2.3594]
[1736100880518,7.4865913,212.0,211.92,7.4865913]
[1736100880707,2.64,211.99,211.92,7.4865913]
[1736100881517,2.64,211.99,211.97,2.3593]
[1736100882714,7.4865913,212.0,211.92,7.4865913]
[1736100882919,2.64,211.99,211.98,2.3591]
[1736100888624,2.64,211.99,211.96,2.3594]
[1736100888822,7.4865913,211.98,211.96,2.3594]
[1736100889017,7.4865913,211.98,211.89,1.4136]
[1736100889222,7.4865913,211.96,211.89,8.9001913]
[1736100890520,7.4865913,211.96,211.95,2.3596]
[1736100892328,7.4865913,211.98,211.97,2.3594]
[1736100893123,2.64,211.99,211.93,7.4865913]
[1736100893323,2.64,211.99,211.98,2.3593]
[1736100895728,7.4865913,212.01,211.93,7.4865913]
[1736100895927,7.4865913,212.01,212.0,2.359]
[1736100896127,10.1265913,212.01,212.0,2.359]
[1736100896323,7.4865913,212.01,212.0,2.359]
[1736100896631,79.35365602,212.02,212.01,2.3589]
[1736100896830,2.64,212.02,212.01,2.3589]
[1736100897035,7.4865913,212.04,211.98,1.4131]
[1736100897327,10.1265913,212.04,212.03,2.3587]
[1736100898130,10.1265913,212.04,212.02,2.3588]
[1736100900535,10.1265913,212.04,212.03,2.3587]
[1736100901334,10.1265913,212.04,211.98,1.4131]
[1736100901533,7.4865913,212.0,211.98,1.4131]
[1736100903330,7.4865913,212.0,211.95,1.4455]
[1736100903535,7.4865913,211.98,211.95,1.4455]
[1736100904134,7.4865913,211.98,211.96,2.3594]
[1736100905537,10.1265913,211.98,211.94,1.383]
[1736100905739,7.4865913,211.96,211.94,1.383]
[1736100906234,7.4865913,211.96,211.95,2.3596]
[1736100907237,10.1265913,211.98,211.94,1.383]
[1736100907437,10.1265913,211.98,211.94,2.3597]
[1736100911942,10.1265913,211.98,211.92,1.4366]
[1736100913947,10.1265913,211.98,211.94,2.3596]
[1736100914449,10.1265913,211.98,211.95,2.3596]
[1736100920452,10.1265913,211.98,211.92,1.4366]
[1736100920453,2.64,211.98,211.97,2.3594]
[1736100921944,2.64,211.98,211.92,1.4366]
[1736100921945,3.54053444,212.07,211.95,7.4865913]
[1736100922148,7.4865913,212.02,211.95,7.4865913]
[1736100922346,2.64,212.01,211.95,7.4865913]
[1736100923158,7.4865913,212.02,211.98,2.3592]
[1736100923452,2.64,212.01,211.98,2.3592]
[1736100923652,7.4865913,212.0,211.98,2.3592]
[1736100924158,2.64,212.01,211.98,2.3592]
[1736100924351,7.4865913,212.0,211.99,2.3591]
[1736100926849,7.4865913,212.0,211.98,2.3592]
[1736100927764,2.64,211.99,211.98,2.3592]
[1736100931151,2.64,211.99,211.97,2.3594]
[1736100935067,2.64,211.99,211.93,7.4865913]
[1736100936468,2.64,211.99,211.97,2.3593]
[1736100939674,7.4865913,211.98,211.91,26.28726551]
[1736100940470,7.4865913,211.98,211.95,2.3596]
[1736100940669,9.8458913,211.98,211.95,2.3596]
[1736100940874,9.8458913,211.98,211.9,35.21315681]
[1736100941173,9.8458913,211.98,211.9,15.49914889]
[1736100941973,9.8458913,211.98,211.91,4.54452289]
[1736100942476,9.8458913,211.98,211.94,2.3597]
[1736100944667,7.4865913,211.98,211.94,2.3597]
[1736100946875,9.8459913,211.98,211.92,7.4865913]
[1736100947077,7.4865913,211.98,211.93,2.3598]
[1736100947472,7.4865913,211.96,211.9,1.4393]
[1736100947776,7.4865913,211.94,211.9,1.4393]
[1736100947976,10.1265913,211.94,211.9,1.4393]
[1736100949177,10.1265913,211.94,211.91,2.36]
[1736100949785,10.1265913,211.94,211.89,3.8228]
[1736100950579,10.1265913,211.94,211.89,2.3602]
[1736100950783,7.4865913,211.92,211.87,2.3604]
[1736100952488,2.36,211.91,211.87,2.3604]
[1736100953383,7.4865913,211.88,211.85,3.7755]
[1736100953584,10.1265913,211.88,211.85,3.7755]
[1736100953785,2.64,211.88,211.85,3.7755]
[1736100954585,2.64,211.88,211.85,1.4149]
[1736100954777,5.0004,211.88,211.84,2.3608]
[1736100955178,2.64,211.88,211.83,1.5287]
[1736100955386,2.3605,211.87,211.83,1.5287]
[1736100955784,2.64,211.88,211.83,9.0152913]
[1736100958485,2.64,211.88,211.86,2.3606]
[1736100960587,2.64,211.88,211.83,9.0152913]
[1736100961487,5.0004,211.88,211.83,11.3760913]
[1736100963293,5.0004,211.88,211.84,2.3608]
[1736100963492,2.64,211.88,211.84,2.3608]
[1736100965486,2.64,211.88,211.85,2.3607]
[1736100965687,2.66,211.87,211.83,9.0152913]
[1736100966394,2.66,211.87,211.86,2.3606]
[1736100966594,2.66,211.88,211.86,2.3606]
[1736100970703,2.66,211.88,211.8,1.4641]
[1736100970904,2.3606,211.86,211.82,2.361]
[1736100971804,12.5070913,211.88,211.82,2.361]
[1736100972895,10.1465913,211.88,211.82,2.361]
[1736100973103,10.1465913,211.88,211.8,1.4641]
[1736100973304,7.4865913,211.86,211.81,2.3611]
[1736100973600,2.3607,211.85,211.81,2.3611]
[1736100975313,9.8471913,211.86,211.81,2.3611]
[1736100975497,9.8471913,211.86,211.8,1.4641]
[1736100975801,9.8471913,211.86,211.75,1.5256]
[1736100975802,7.4865913,211.82,211.74,6.57325759]
[1736100975992,7.4865913,211.82,211.74,14.05984889]
[1736100975993,2.66,211.81,211.74,14.05984889]
[1736100976191,2.66,211.81,211.74,6.57325759]
[1736100976395,7.4865913,211.8,211.74,6.57325759]
[1736100976797,9.8478913,211.8,211.74,2.3619]
[1736100977405,9.8478913,211.8,211.75,2.3618]
[1736100977904,2.66,211.81,211.78,2.3615]
[1736100979204,2.66,211.81,211.75,7.4865913]
[1736100979401,2.66,211.81,211.79,2.3614]
[1736100980302,2.66,211.81,211.8,2.3613]
[1736100985707,2.66,211.81,211.79,2.3614]
[1736100986112,7.4865913,211.8,211.73,8.9567913]
[1736100986317,7.4865913,211.8,211.73,1.4702]
[1736100987510,7.4865913,211.8,211.76,2.3616]
[1736100988108,9.8481913,211.78,211.73,2.3619]
[1736100989216,2.66,211.81,211.74,2.3619]
[1736100989410,7.4865913,211.77,211.74,2.3619]
[1736100989604,2.64,211.76,211.7,7.4865913]
[1736100989808,2.64,211.76,211.72,7.4865913]
[1736100990419,2.64,211.76,211.75,2.3618]
[1736100991706,2.64,211.76,211.67,116.90885224]
[1736100991707,14.15,211.75,211.59,73.18092084]
[1736100991908,51.58,211.76,211.59,73.18092084]
[1736100992116,2.64,211.74,211.59,73.18092084]
[1736100992313,7.4865913,211.7,211.6,7.4865913]
[1736100992513,163.5075801,211.63,211.6,7.4865913]
[1736100993013,81.20931937,211.62,211.6,7.4865913]
[1736100993210,2.64,211.61,211.3,208.16958742]
[1736100993405,129.15884409,211.55,211.53,7.4865913]
[1736100993714,161.44855512,211.55,211.53,7.4865913]
[1736100993917,129.13542027,211.55,211.54,7.4865913]
[1736100994413,165.2284511,211.55,211.54,7.4865913]
[1736100994616,36.09303083,211.55,211.54,7.4865913]
[1736100995017,128.96095345,211.57,211.55,2.364]
[1736100995514,128.96095345,211.56,211.55,2.364]
[1736100996016,128.96095345,211.57,211.55,2.364]
[1736100996618,161.44855512,211.6,211.56,2.3639]
[1736100996619,161.44855512,211.58,211.56,2.3639]
[1736100996918,161.44855512,211.58,211.52,7.4865913]
[1736100997217,161.44855512,211.58,211.54,7.4865913]
[1736100997218,128.73130873,211.55,211.54,7.4865913]
[1736100997418,126.42530873,211.55,211.54,7.4865913]
[1736100997913,161.44855512,211.59,211.57,2.3638]
[1736100998338,2.64,211.61,211.59,2.3636]
[1736100998718,7.4865913,211.6,211.59,2.3636]
[1736101001021,196.20909612,211.62,211.59,2.3636]
[1736101001318,203.69568742,211.62,211.59,2.3636]
[1736101001719,365.14424254,211.62,211.59,2.3636]
[1736101002324,203.69568742,211.62,211.59,2.3636]
[1736101002824,7.4865913,211.62,211.59,2.3636]
[1736101005521,2.66,211.63,211.53,7.4865913]
[1736101005722,2.66,211.63,211.54,1.5285]
[1736101005921,7.4865913,211.62,211.55,7.4865913]
[1736101007025,7.4865913,211.62,211.6,2.3634]
[1736101009617,2.68,211.65,211.64,2.363]
[1736101010027,10.1865913,211.66,211.6,1.479]
[1736101010919,7.4865913,211.64,211.63,2.3631]
[1736101013822,128.46255804,211.78,211.62,7.4865913]
[1736101014027,7.4865913,211.7,211.62,7.4865913]
[1736101014224,7.4865913,211.68,211.62,7.4865913]
[1736101014424,7.4865913,211.68,211.6,8.9655913]
[1736101015224,7.4865913,211.66,211.6,1.479]
[1736101015629,7.4865913,211.66,211.65,2.3629]
[1736101018029,7.4865913,211.67,211.6,1.479]
[1736101018230,7.4865913,211.67,211.66,2.3628]
[1736101025330,2.68,211.72,211.61,7.4865913]
[1736101025524,2.68,211.72,211.63,7.4865913]
[1736101025525,7.4865913,211.69,211.63,7.4865913]
[1736101025728,7.4865913,211.69,211.64,1.4181]
[1736101026636,7.4865913,211.69,211.68,2.3626]
[1736101028439,7.4865913,211.71,211.7,2.3624]
[1736101028932,2.68,211.74,211.72,2.3621]
[1736101029231,7.4865913,211.73,211.72,2.3621]
[1736101030442,2.68,211.77,211.67,7.4865913]
[1736101030639,7.4865913,211.74,211.68,1.4024]
[1736101031028,7.4865913,211.72,211.69,2.3624]
[1736101031234,7.4865913,211.72,211.68,1.4024]
[1736101031732,2.68,211.77,211.74,2.3619]
[1736101031933,7.4865913,211.75,211.74,2.3619]
[1736101032735,2.68,211.78,211.74,2.3619]
[1736101032932,7.4865913,211.75,211.74,2.3619]
[1736101033736,2.68,211.78,211.76,2.3617]
[1736101033937,7.4865913,211.77,211.76,2.3617]
[1736101035341,7.4865913,211.77,211.68,1.4024]
[1736101035534,7.4865913,211.72,211.68,1.4024]
[1736101037232,7.4865913,211.74,211.68,1.4024]
[1736101038437,5.0415,211.78,211.73,2.362]
[1736101038635,2.68,211.78,211.69,7.4865913]
[1736101038842,7.4865913,211.77,211.69,7.4865913]
[1736101039739,7.4865913,211.77,211.71,7.4865913]
[1736101039938,7.4865913,211.77,211.76,2.3617]
[1736101040733,5.0612,211.81,211.77,2.3616]
[1736101040940,7.4865913,211.78,211.77,2.3616]
[1736101043338,7.4865913,211.78,211.68,1.4024]
[1736101043538,7.4865913,211.75,211.68,1.4024]
[1736101044144,7.4865913,211.75,211.73,2.362]
[1736101047047,7.4865913,211.75,211.69,7.4865913]
[1736101047344,7.4865913,211.77,211.74,2.3619]
[1736101052441,7.4865913,211.77,211.69,7.4865913]
[1736101052647,7.4865913,211.79,211.71,7.4865913]
[1736101052841,2.7,211.82,211.73,7.4865913]
[1736101053043,7.4865913,211.81,211.73,7.4865913]
[1736101053242,7.4865913,211.81,211.79,2.3613]
[1736101054137,2.3606,211.87,211.77,7.4865913]
[1736101054342,7.4865913,211.85,211.78,1.4329]
[1736101054742,5.0604,211.88,211.8,2.3612]
[1736101054942,2.8685,211.94,211.79,7.4865913]
[1736101055251,7.4865913,211.87,211.85,2.3607]
[1736101055640,7.4865913,211.87,211.81,7.4865913]
[1736101056640,7.4865913,211.87,211.85,2.3607]
[1736101056845,2.7,211.88,211.81,7.4865913]
[1736101057046,7.4865913,211.89,211.81,7.4865913]
[1736101057241,7.4865913,211.89,211.85,2.3607]
[1736101057945,7.4865913,211.89,211.81,7.4865913]
[1736101058848,7.4865913,211.89,211.85,2.3606]
[1736101059043,7.4865913,211.89,211.81,7.4865913]
[1736101060753,7.4865913,211.87,211.83,2.3609]
[1736101062750,2.7,211.91,211.79,10.1865913]
[1736101063045,7.4865913,211.92,211.85,7.4865913]